{"text_format":"1","workbook":"xlsx","n_sheets":6,"sheets":["General Ideas","Currencies","VBA Code","Break Sheet","GBP","EUR"],"not_rendered":{"charts":0,"images":3,"macros":1,"external_links":0,"defined_names":12,"comments":0,"pivot_tables":0},"unopened":[],"bounds":{"document_bytes":16777216,"sheet_cells":100000,"rows_first":2000,"rows_last":500,"rows_between":2000,"halvings":0,"cell_chars":16384,"cell_head_chars":4096},"cells_cut":0,"cells_raw":0,"read":"whole","date_system":"1900"}

{"sheet":"General Ideas","index":0,"n_rows":9,"n_cols":2,"rows_kept":9,"cut":false,"hidden":false,"merged":[]}
[]
[]
[]
[null,"Read URL"]
[]
[null,"Find the USD = 1 text"]
[null,"Get row number"]
[null,"Copy row into our file"]
[null,"Idea is not to have to save the file created with the URL"]

{"sheet":"Currencies","index":1,"n_rows":202,"n_cols":13,"rows_kept":202,"cut":false,"hidden":false,"merged":[]}
[null,"https://transferwise.com/us/currency-converter/usd-to-",null,null,null,null,null,null,null,null,"Close File",true]
[null,{"$f":"B1&B6&\"-rate\"","v":"https://transferwise.com/us/currency-converter/usd-to-EUR-rate"}]
[]
[null,null,null,null,null,null,null,null,null,null,"From Currency Convert","Currencies for ","2018-08-27"]
[null,"Row Num",2]
[null,{"$f":"INDEX(J8:J175,C5)","v":"EUR"},{"$f":"INDEX(list_out1,$C$5)","v":"Euro"},null,null,null,null,null,"Total Currencies",{"$f":"MAX(F:F)","v":2}]
[null,null,null,null,null,null,null,null,null,null,null,"Currency/USD","USD/Currency"]
[1,"AUD","Australian Dollar",null,false,{"$f":"E8*1","v":0},null,1,{"$f":"INDEX(C:C,MATCH(H8,F:F,0))","v":"British Pound"},{"$f":"INDEX($B$8:$B$175,MATCH(I8,$C$8:$C$175,0))","v":"GBP"},{"$f":"IF(A201=0,\"\",A201)","v":"1 USD → 0.77546 GBP"},{"$f":"IFERROR(MID(K8,FIND(\"→\",K8)+1,7),\"\")","v":" 0.7754"},{"$f":"IFERROR(1/L8,\"\")","v":1.2896569512509672}]
[{"$f":"A8+1","v":2},"GBP","British Pound",null,true,{"$f":"F8+E9","v":1},null,2,{"$f":"INDEX(C:C,MATCH(H9,F:F,0))","v":"Euro"},{"$f":"INDEX($B$8:$B$175,MATCH(I9,$C$8:$C$175,0))","v":"EUR"},"1 USD → 0.85635 EUR",{"$f":"IFERROR(MID(K9,FIND(\"→\",K9)+1,7),\"\")","v":" 0.8563"},{"$f":"IFERROR(1/L9,\"\")","v":1.1678150181011329}]
[{"$f":"A9+1","v":3},"EUR","Euro",null,true,{"$f":"F9+E10","v":2},null,3,{"$error":"#N/A"},{"$error":"#N/A"},"","",""]
[4,"JPY","Japanese Yen",null,false,2,null,4,{"$error":"#N/A"},{"$error":"#N/A"},"","",""]
[5,"CHF","Swiss Franc",null,false,2,null,5,{"$error":"#N/A"},{"$error":"#N/A"},"","",""]
[6,"USD","US Dollar",null,false,2,null,6,{"$error":"#N/A"},{"$error":"#N/A"},"",{"$f":"IFERROR(MID(K13,FIND(\"=\",K13)+1,7),\"\")","v":""},{"$f":"IFERROR(1/L13,\"\")","v":""}]
[7,"AFN","Afghanistan Afghani",null,false,2,null,7,{"$error":"#N/A"},{"$error":"#N/A"},"","",""]
[8,"ALL","Albanian Lek",null,false,2,null,8,{"$error":"#N/A"},{"$error":"#N/A"},"","",""]
[9,"DZD","Algerian Dinar",null,false,2,null,9,{"$error":"#N/A"},{"$error":"#N/A"},null,"",""]
[10,"AOA","Angolan Kwanza",null,false,2,null,10,{"$error":"#N/A"},{"$error":"#N/A"},"","",""]
[11,"ARS","Argentine Peso",null,false,2,null,11,{"$error":"#N/A"},{"$error":"#N/A"},"","",""]
[12,"AMD","Armenian Dram",null,false,2,null,12,{"$error":"#N/A"},{"$error":"#N/A"},"","",""]
[13,"AWG","Aruban Florin",null,false,2,null,13,{"$error":"#N/A"},{"$error":"#N/A"},"","",""]
[14,"AUD","Australian Dollar",null,false,2,null,14,{"$error":"#N/A"},{"$error":"#N/A"},"","",""]
[15,"AZN","Azerbaijan New Manat",null,false,2,null,15,{"$error":"#N/A"},{"$error":"#N/A"},"","",""]
[16,"BSD","Bahamian Dollar",null,false,2,null,16,null,{"$error":"#N/A"},"","",""]
[17,"BHD","Bahraini Dinar",null,false,2,null,17,null,{"$error":"#N/A"},"","",""]
[18,"BDT","Bangladeshi Taka",null,false,2,null,18,null,{"$error":"#N/A"},"","",""]
[19,"BBD","Barbados Dollar",null,false,2,null,19,null,{"$error":"#N/A"},"","",""]
[20,"BYR","Belarusian Ruble",null,false,2,null,20,null,{"$error":"#N/A"},"","",""]
[21,"BZD","Belize Dollar",null,false,2,null,21,null,{"$error":"#N/A"},"","",""]
[22,"BMD","Bermudian Dollar",null,false,2,null,22,null,{"$error":"#N/A"},"","",""]
[23,"BTN","Bhutan Ngultrum",null,false,2,null,23,null,{"$error":"#N/A"},"","",""]
[24,"BOB","Bolivian Boliviano",null,false,2,null,24,null,{"$error":"#N/A"},"","",""]
[25,"BAM","Bosnian Mark",null,false,2,null,25,null,{"$error":"#N/A"},"","",""]
[26,"BWP","Botswana Pula",null,false,2,null,26,null,{"$error":"#N/A"},"","",""]
[27,"BRL","Brazilian Real",null,false,2,null,27,null,{"$error":"#N/A"},"","",""]
[28,"GBP","British Pound",null,false,2,null,28,null,{"$error":"#N/A"},"","",""]
[29,"BND","Brunei Dollar",null,false,2,null,29,null,{"$error":"#N/A"},"","",""]
[30,"BGN","Bulgarian Lev",null,false,2,null,30,null,{"$error":"#N/A"},"","",""]
[31,"BIF","Burundi Franc",null,false,2,null,31,null,{"$error":"#N/A"},"","",""]
[32,"XOF","CFA Franc BCEAO",null,false,2,null,32,null,{"$error":"#N/A"},"","",""]
[33,"XAF","CFA Franc BEAC",null,false,2,null,33,null,{"$error":"#N/A"},{"$f":"IF(A233=0,\"\",A233)","v":""},"",""]
[34,"XPF","CFP Franc",null,false,2,null,34,null,{"$error":"#N/A"},"","",""]
[35,"KHR","Cambodian Riel",null,false,2,null,35,null,{"$error":"#N/A"},"","",""]
[36,"CAD","Canadian Dollar",null,false,2,null,36,null,{"$error":"#N/A"},"","",""]
[37,"CVE","Cape Verde Escudo",null,false,2,null,37,null,{"$error":"#N/A"},"","",""]
[38,"KYD","Cayman Islands Dollar",null,false,2,null,38,null,{"$error":"#N/A"},"","",""]
[39,"CLP","Chilean Peso",null,false,2,null,39,null,{"$error":"#N/A"},"","",""]
[40,"CNY","Chinese Yuan/Renminbi",null,false,2,null,40,null,{"$error":"#N/A"},"","",""]
[41,"COP","Colombian Peso",null,false,2,null,41,null,{"$error":"#N/A"},"","",""]
[42,"KMF","Comoros Franc",null,false,2,null,42,null,{"$error":"#N/A"},"","",""]
[43,"CDF","Congolese Franc",null,false,2,null,43,null,{"$error":"#N/A"},"","",""]
[44,"CRC","Costa Rican Colon",null,false,2,null,44,null,{"$error":"#N/A"},"","",""]
[45,"HRK","Croatian Kuna",null,false,2,null,45,null,{"$error":"#N/A"},"","",""]
[46,"CUC","Cuban Convertible Peso",null,false,2,null,46,null,{"$error":"#N/A"},"","",""]
[47,"CUP","Cuban Peso",null,false,2,null,47,null,{"$error":"#N/A"},"","",""]
[48,"CYP","Cyprus Pound",null,false,2,null,48,null,{"$error":"#N/A"},"","",""]
[49,"CZK","Czech Koruna",null,false,2,null,49,null,{"$error":"#N/A"},"","",""]
[50,"DKK","Danish Krone",null,false,2,null,50,null,{"$error":"#N/A"},"","",""]
[51,"DJF","Djibouti Franc",null,false,2,null,51,null,{"$error":"#N/A"},"","",""]
[52,"DOP","Dominican R Peso",null,false,2,null,52,null,{"$error":"#N/A"},"","",""]
[53,"XCD","East Caribbean Dollar",null,false,2,null,53,null,{"$error":"#N/A"},"","",""]
[54,"EGP","Egyptian Pound",null,false,2,null,54,null,{"$error":"#N/A"},"","",""]
[55,"SVC","El Salvador Colon",null,false,2,null,55,null,{"$error":"#N/A"},"","",""]
[56,"EEK","Estonian Kroon",null,false,2,null,56,null,{"$error":"#N/A"},"","",""]
[57,"ETB","Ethiopian Birr",null,false,2,null,57,null,{"$error":"#N/A"},"","",""]
[58,"EUR","Euro",null,false,2,null,58,null,{"$error":"#N/A"},"","",""]
[59,"FKP","Falkland Islands Pound",null,false,2,null,59,null,{"$error":"#N/A"},"","",""]
[60,"FJD","Fiji Dollar",null,false,2,null,60,null,{"$error":"#N/A"},"","",""]
[61,"GMD","Gambian Dalasi",null,false,2,null,61,null,{"$error":"#N/A"},"","",""]
[62,"GEL","Georgian Lari",null,false,2,null,62,null,{"$error":"#N/A"},"","",""]
[63,"GHS","Ghanaian New Cedi",null,false,2,null,63,null,{"$error":"#N/A"},"","",""]
[64,"GIP","Gibraltar Pound",null,false,2,null,64,null,{"$error":"#N/A"},"","",""]
[65,"XAU","Gold (oz)",null,false,2,null,65,null,{"$error":"#N/A"},{"$f":"IF(A265=0,\"\",A265)","v":""},"",""]
[66,"GTQ","Guatemalan Quetzal",null,false,2,null,66,null,{"$f":"INDEX($B$8:$B$175,MATCH(I73,$C$8:$C$175,0))","v":{"$error":"#N/A"}},"",{"$f":"IFERROR(MID(K73,FIND(\"=\",K73)+1,7),\"\")","v":""},{"$f":"IFERROR(1/L73,\"\")","v":""}]
[{"$f":"A73+1","v":67},"GNF","Guinea Franc",null,false,{"$f":"F73+E74","v":2},null,67,null,{"$error":"#N/A"},"","",""]
[68,"GYD","Guyanese Dollar",null,false,2,null,68,null,{"$error":"#N/A"},"","",""]
[69,"HTG","Haitian Gourde",null,false,2,null,69,null,{"$error":"#N/A"},"","",""]
[70,"HNL","Honduran Lempira",null,false,2,null,70,null,{"$error":"#N/A"},"","",""]
[71,"HKD","Hong Kong Dollar",null,false,2,null,71,null,{"$error":"#N/A"},"","",""]
[72,"HUF","Hungarian Forint",null,false,2,null,72,null,{"$error":"#N/A"},"","",""]
[73,"ISK","Iceland Krona",null,false,2,null,73,null,{"$error":"#N/A"},"","",""]
[74,"INR","Indian Rupee",null,false,2,null,74,null,{"$error":"#N/A"}]
[75,"IDR","Indonesian Rupiah",null,false,2,null,75,null,{"$error":"#N/A"}]
[76,"IRR","Iranian Rial",null,false,2,null,76,null,{"$error":"#N/A"}]
[77,"IQD","Iraqi Dinar",null,false,2,null,77,null,{"$error":"#N/A"}]
[78,"ILS","Israeli New Shekel",null,false,2,null,78,null,{"$error":"#N/A"}]
[79,"JMD","Jamaican Dollar",null,false,2,null,79,null,{"$error":"#N/A"}]
[80,"JPY","Japanese Yen",null,false,2,null,80,null,{"$error":"#N/A"}]
[81,"JOD","Jordanian Dinar",null,false,2,null,81,null,{"$error":"#N/A"}]
[82,"KZT","Kazakhstan Tenge",null,false,2,null,82,null,{"$error":"#N/A"}]
[83,"KES","Kenyan Shilling",null,false,2,null,83,null,{"$error":"#N/A"}]
[84,"KWD","Kuwaiti Dinar",null,false,2,null,84,null,{"$error":"#N/A"}]
[85,"KGS","Kyrgyzstanian Som",null,false,2,null,85,null,{"$error":"#N/A"}]
[86,"LAK","Lao Kip",null,false,2,null,86,null,{"$error":"#N/A"}]
[87,"LVL","Latvian Lats",null,false,2,null,87,null,{"$error":"#N/A"}]
[88,"LBP","Lebanese Pound",null,false,2,null,88,null,{"$error":"#N/A"}]
[89,"LSL","Lesotho Loti",null,false,2,null,89,null,{"$error":"#N/A"}]
[90,"LRD","Liberian Dollar",null,false,2,null,90,null,{"$error":"#N/A"}]
[91,"LYD","Libyan Dinar",null,false,2,null,91,null,{"$error":"#N/A"}]
[92,"LTL","Lithuanian Litas",null,false,2,null,92,null,{"$error":"#N/A"}]
[93,"MOP","Macau Pataca",null,false,2,null,93,null,{"$error":"#N/A"}]
[94,"MKD","Macedonian Denar",null,false,2,null,94,null,{"$error":"#N/A"}]
[95,"MGA","Malagasy Ariary",null,false,2,null,95,null,{"$error":"#N/A"}]
[96,"MWK","Malawi Kwacha",null,false,2,null,96,null,{"$error":"#N/A"}]
[97,"MYR","Malaysian Ringgit",null,false,2,null,97,null,{"$error":"#N/A"}]
[98,"MVR","Maldive Rufiyaa",null,false,2,null,98,null,{"$error":"#N/A"}]
[99,"MTL","Maltese Lira",null,false,2,null,99,null,{"$error":"#N/A"}]
[100,"MRO","Mauritanian Ouguiya",null,false,2,null,100,null,{"$error":"#N/A"}]
[101,"MUR","Mauritius Rupee",null,false,2,null,101,null,{"$error":"#N/A"}]
[102,"MXN","Mexican Peso",null,false,2,null,102,null,{"$error":"#N/A"}]
[103,"MDL","Moldovan Leu",null,false,2,null,103,null,{"$error":"#N/A"}]
[104,"MNT","Mongolian Tugrik",null,false,2,null,104,null,{"$error":"#N/A"}]
[105,"MAD","Moroccan Dirham",null,false,2,null,105,null,{"$error":"#N/A"}]
[106,"MZN","Mozambique New Metical",null,false,2,null,106,null,{"$error":"#N/A"}]
[107,"MMK","Myanmar Kyat",null,false,2,null,107,null,{"$error":"#N/A"}]
[108,"ANG","NL Antillian Guilder",null,false,2,null,108,null,{"$error":"#N/A"}]
[109,"NAD","Namibia Dollar",null,false,2,null,109,null,{"$error":"#N/A"}]
[110,"NPR","Nepalese Rupee",null,false,2,null,110,null,{"$error":"#N/A"}]
[111,"NZD","New Zealand Dollar",null,false,2,null,111,null,{"$error":"#N/A"}]
[112,"NIO","Nicaraguan Cordoba Oro",null,false,2,null,112,null,{"$error":"#N/A"}]
[113,"NGN","Nigerian Naira",null,false,2,null,113,null,{"$error":"#N/A"}]
[114,"KPW","North Korean Won",null,false,2,null,114,null,{"$error":"#N/A"}]
[115,"NOK","Norwegian Kroner",null,false,2,null,115,null,{"$error":"#N/A"}]
[116,"OMR","Omani Rial",null,false,2,null,116,null,{"$error":"#N/A"}]
[117,"PKR","Pakistan Rupee",null,false,2,null,117,null,{"$error":"#N/A"}]
[118,"PAB","Panamanian Balboa",null,false,2,null,118,null,{"$error":"#N/A"}]
[119,"PGK","Papua New Guinea Kina",null,false,2,null,119,null,{"$error":"#N/A"}]
[120,"PYG","Paraguay Guarani",null,false,2,null,120,null,{"$error":"#N/A"}]
[121,"PEN","Peruvian Nuevo Sol",null,false,2,null,121,null,{"$error":"#N/A"}]
[122,"PHP","Philippine Peso",null,false,2,null,122,null,{"$error":"#N/A"}]
[123,"PLN","Polish Zloty",null,false,2,null,123,null,{"$error":"#N/A"}]
[124,"QAR","Qatari Rial",null,false,2,null,124,null,{"$error":"#N/A"}]
[125,"RON","Romanian New Lei",null,false,2,null,125,null,{"$error":"#N/A"}]
[126,"RUB","Russian Rouble",null,false,2,null,126,null,{"$error":"#N/A"}]
[127,"RWF","Rwandan Franc",null,false,2,null,127,null,{"$error":"#N/A"}]
[128,"WST","Samoan Tala",null,false,2,null,128,null,{"$error":"#N/A"}]
[129,"STD","Sao Tome/Principe Dobra",null,false,2,null,129,null,{"$error":"#N/A"}]
[130,"SAR","Saudi Riyal",null,false,2,null,130,null,{"$f":"INDEX($B$8:$B$175,MATCH(I137,$C$8:$C$175,0))","v":{"$error":"#N/A"}}]
[{"$f":"A137+1","v":131},"RSD","Serbian Dinar",null,false,{"$f":"F137+E138","v":2},null,131,null,{"$error":"#N/A"}]
[132,"SCR","Seychelles Rupee",null,false,2,null,132,null,{"$error":"#N/A"}]
[133,"SLL","Sierra Leone Leone",null,false,2,null,133,null,{"$error":"#N/A"}]
[134,"XAG","Silver (oz)",null,false,2,null,134,null,{"$error":"#N/A"}]
[135,"SGD","Singapore Dollar",null,false,2,null,135,null,{"$error":"#N/A"}]
[136,"SKK","Slovak Koruna",null,false,2,null,136,null,{"$error":"#N/A"}]
[137,"SIT","Slovenian Tolar",null,false,2,null,137,null,{"$error":"#N/A"}]
[138,"SBD","Solomon Islands Dollar",null,false,2,null,138,null,{"$error":"#N/A"}]
[139,"SOS","Somali Shilling",null,false,2,null,139,null,{"$error":"#N/A"}]
[140,"ZAR","South African Rand",null,false,2,null,140,null,{"$error":"#N/A"}]
[141,"KRW","South-Korean Won",null,false,2,null,141,null,{"$error":"#N/A"}]
[142,"LKR","Sri Lanka Rupee",null,false,2,null,142,null,{"$error":"#N/A"}]
[143,"SHP","St Helena Pound",null,false,2,null,143,null,{"$error":"#N/A"}]
[144,"SDG","Sudanese Pound",null,false,2,null,144,null,{"$error":"#N/A"}]
[145,"SRD","Suriname Dollar",null,false,2,null,145,null,{"$error":"#N/A"}]
[146,"SZL","Swaziland Lilangeni",null,false,2,null,146,null,{"$error":"#N/A"}]
[147,"SEK","Swedish Krona",null,false,2,null,147,null,{"$error":"#N/A"}]
[148,"CHF","Swiss Franc",null,false,2,null,148,null,{"$error":"#N/A"}]
[149,"SYP","Syrian Pound",null,false,2,null,149,null,{"$error":"#N/A"}]
[150,"TWD","Taiwan Dollar",null,false,2,null,150,null,{"$error":"#N/A"}]
[151,"TZS","Tanzanian Shilling",null,false,2,null,151,null,{"$error":"#N/A"}]
[152,"THB","Thai Baht",null,false,2,null,152,null,{"$error":"#N/A"}]
[153,"TOP","Tonga Pa'anga",null,false,2,null,153,null,{"$error":"#N/A"}]
[154,"TTD","Trinidad/Tobago Dollar",null,false,2,null,154,null,{"$error":"#N/A"}]
[155,"TND","Tunisian Dinar",null,false,2,null,155,null,{"$error":"#N/A"}]
[156,"TRY","Turkish New Lira",null,false,2,null,156,null,{"$error":"#N/A"}]
[157,"TMM","Turkmenistan Manat",null,false,2,null,157,null,{"$error":"#N/A"}]
[158,"USD","US Dollar",null,false,2,null,158,null,{"$error":"#N/A"}]
[159,"UGX","Uganda Shilling",null,false,2,null,159,null,{"$error":"#N/A"}]
[160,"UAH","Ukraine Hryvnia",null,false,2,null,160,null,{"$error":"#N/A"}]
[161,"UYU","Uruguayan Peso",null,false,2,null,161,null,{"$error":"#N/A"}]
[162,"AED","United Arab Emir Dirham",null,false,2,null,162,null,{"$error":"#N/A"}]
[163,"VUV","Vanuatu Vatu",null,false,2,null,163,null,{"$error":"#N/A"}]
[164,"VEB","Venezuelan Bolivar",null,false,2,null,164,null,{"$error":"#N/A"}]
[165,"VND","Vietnamese Dong",null,false,2,null,165,null,{"$error":"#N/A"}]
[166,"YER","Yemeni Rial",null,false,2,null,166,null,{"$error":"#N/A"}]
[167,"ZMK","Zambian Kwacha",null,false,2,null,167,null,{"$error":"#N/A"}]
[168,"ZWD","Zimbabwe Dollar",null,false,2,null,168,null,{"$error":"#N/A"}]
[]
[]
[]
[]
[]
[]
[]
[]
[]
[]
[]
[]
[]
[]
[]
[]
[]
[]
[]
[]
[]
[]
[]
[]
[]
["1 USD → 0.77546 GBP"]
["1 USD → 0.85635 EUR"]

{"sheet":"VBA Code","index":2,"n_rows":0,"n_cols":0,"rows_kept":0,"cut":false,"hidden":false,"merged":[]}

{"sheet":"Break Sheet","index":3,"n_rows":0,"n_cols":0,"rows_kept":0,"cut":false,"hidden":false,"merged":[]}

{"sheet":"GBP","index":4,"n_rows":111,"n_cols":9,"rows_kept":111,"cut":false,"hidden":false,"merged":[]}
["Toggle navigation TransferWise "]
["Send money "]
["Currency converter "]
["Browse all currencies"]
["Get rate alerts"]
["Compare bank rates"]
["Send money"]
["Send money"]
["Get the real exchange rate"]
["See our coverage"]
["Pricing"]
["Receive money"]
["Get a borderless accountNew"]
["Get international bank details"]
["How it works"]
["Pricing"]
["Business"]
["Overview"]
["Get international bank details"]
["Run payroll or batch payments"]
["Get paid as a freelancer"]
["Explore the payouts API"]
["Pricing"]
["About"]
["Help"]
["Pricing"]
["Mid-market rate"]
["Our story"]
["Log in "]
["×"]
["USD to GBP Exchange Rate"]
["US Dollar to British Pound"]
[]
["From"]
["To"]
[]
[]
[]
[]
[]
[]
[]
[]
[]
["Your currency converted at the REAL rate"]
["Mid-market rate at 22:36 UTC"]
["1 USD → 0.77546 GBP"]
["(1 GBP → 1.28955 USD)"]
["Send USD with TransferWise"]
["Past 30 Days Past 90 Days"]
["Past 30 Days Past 90 Days"]
["The REAL rate is also known as the mid-market rate, its the one you will find on independent sites like Google and Yahoo."]
["US Dollar","British Pound Sterling"]
["1 USD","0.77546 GBP"]
["5 USD","3.87730 GBP"]
["10 USD","7.75460 GBP"]
["20 USD","15.50920 GBP"]
["50 USD","38.77300 GBP"]
["100 USD","77.54600 GBP"]
["250 USD","193.86500 GBP"]
["500 USD","387.73000 GBP"]
["1000 USD","775.46000 GBP"]
["2000 USD","1550.92000 GBP"]
["5000 USD","3877.30000 GBP"]
["10000 USD","7754.60000 GBP"]
["British Pound Sterling","US Dollar"]
["1 GBP","1.28955 USD"]
["5 GBP","6.44775 USD"]
["10 GBP","12.89550 USD"]
["20 GBP","25.79100 USD"]
["50 GBP","64.47750 USD"]
["100 GBP","128.95500 USD"]
["250 GBP","322.38750 USD"]
["500 GBP","644.77500 USD"]
["1000 GBP","1289.55000 USD"]
["2000 GBP","2579.10000 USD"]
["5000 GBP","6447.75000 USD"]
["10000 GBP","12895.50000 USD"]
["Top currencies"]
[null,"EUR Euro ","GBP British Pound ","USD US Dollar ","INR Indian Rupee ","CAD Canadian Dollar ","AUD Australian Dollar ","CHF Swiss Franc ","MXN Mexican Peso "]
["1 EUR Euro ",1,0.90559999999999996,1.1679999999999999,81.952719999999999,1.5136000000000001,1.5892999999999999,1.1440999999999999,21.946300000000001]
["1 GBP British Pound ",1.1042000000000001,1,1.28955,90.481279999999998,1.67113,1.7546900000000001,1.2633700000000001,24.2301]
["1 USD US Dollar ",0.85634999999999994,0.77546000000000004,1,70.165000000000006,1.2959000000000001,1.3607,0.97970000000000002,18.7896]
["1 INR Indian Rupee ",1.221E-2,1.1050000000000001E-2,1.4250000000000001E-2,1,1.847E-2,1.9390000000000001E-2,1.396E-2,0.26778999999999997]
["Beware of bad exchange rates. Banks and traditional providers often have extra costs, which they pass to you by marking up the exchange rate. Our smart tech means we’re more efficient – which means you get a great rate. Every time."]
["Compare exchange rates"]
["TransferWise"]
["Company and team"]
["Company and team"]
["News and blog"]
["Press"]
["Careers"]
["Affiliates and partnerships"]
["Help and support"]
["Help centre"]
["Mid-market rate"]
["Pricing"]
["Learn more"]
["Send money abroad"]
["Swift/BIC codes"]
["Currency converter"]
["Rate alerts"]
["Compare exchange rates"]
["Follow us"]
[]
["TransferWise"]
["Legal"]
["Privacy policy"]
["Country site map"]
["© TransferWise Ltd 2018"]
["TransferWise is authorised by the Financial Conduct Authority under the Electronic Money Regulations 2011, Firm Reference 900507, for the issuing of electronic money."]

{"sheet":"EUR","index":5,"n_rows":111,"n_cols":9,"rows_kept":111,"cut":false,"hidden":false,"merged":[]}
["Toggle navigation TransferWise "]
["Send money "]
["Currency converter "]
["Browse all currencies"]
["Get rate alerts"]
["Compare bank rates"]
["Send money"]
["Send money"]
["Get the real exchange rate"]
["See our coverage"]
["Pricing"]
["Receive money"]
["Get a borderless accountNew"]
["Get international bank details"]
["How it works"]
["Pricing"]
["Business"]
["Overview"]
["Get international bank details"]
["Run payroll or batch payments"]
["Get paid as a freelancer"]
["Explore the payouts API"]
["Pricing"]
["About"]
["Help"]
["Pricing"]
["Mid-market rate"]
["Our story"]
["Log in "]
["×"]
["USD to EUR Exchange Rate"]
["US Dollar to Euro"]
[]
["From"]
["To"]
[]
[]
[]
[]
[]
[]
[]
[]
[]
["Your currency converted at the REAL rate"]
["Mid-market rate at 22:36 UTC"]
["1 USD → 0.85635 EUR"]
["(1 EUR → 1.16800 USD)"]
["Send USD with TransferWise"]
["Past 30 Days Past 90 Days"]
["Past 30 Days Past 90 Days"]
["The REAL rate is also known as the mid-market rate, its the one you will find on independent sites like Google and Yahoo."]
["US Dollar","Euro"]
["1 USD","0.85635 EUR"]
["5 USD","4.28175 EUR"]
["10 USD","8.56350 EUR"]
["20 USD","17.12700 EUR"]
["50 USD","42.81750 EUR"]
["100 USD","85.63500 EUR"]
["250 USD","214.08750 EUR"]
["500 USD","428.17500 EUR"]
["1000 USD","856.35000 EUR"]
["2000 USD","1712.70000 EUR"]
["5000 USD","4281.75000 EUR"]
["10000 USD","8563.50000 EUR"]
["Euro","US Dollar"]
["1 EUR","1.16800 USD"]
["5 EUR","5.84000 USD"]
["10 EUR","11.68000 USD"]
["20 EUR","23.36000 USD"]
["50 EUR","58.40000 USD"]
["100 EUR","116.80000 USD"]
["250 EUR","292.00000 USD"]
["500 EUR","584.00000 USD"]
["1000 EUR","1168.00000 USD"]
["2000 EUR","2336.00000 USD"]
["5000 EUR","5840.00000 USD"]
["10000 EUR","11680.00000 USD"]
["Top currencies"]
[null,"EUR Euro ","GBP British Pound ","USD US Dollar ","INR Indian Rupee ","CAD Canadian Dollar ","AUD Australian Dollar ","CHF Swiss Franc ","MXN Mexican Peso "]
["1 EUR Euro ",1,0.90559999999999996,1.1679999999999999,81.952719999999999,1.5136000000000001,1.5892999999999999,1.1440999999999999,21.946300000000001]
["1 GBP British Pound ",1.1042000000000001,1,1.28955,90.481279999999998,1.67113,1.7546900000000001,1.2633700000000001,24.2301]
["1 USD US Dollar ",0.85634999999999994,0.77546000000000004,1,70.165000000000006,1.2959000000000001,1.3607,0.97970000000000002,18.7896]
["1 INR Indian Rupee ",1.221E-2,1.1050000000000001E-2,1.4250000000000001E-2,1,1.847E-2,1.9390000000000001E-2,1.396E-2,0.26778999999999997]
["Beware of bad exchange rates. Banks and traditional providers often have extra costs, which they pass to you by marking up the exchange rate. Our smart tech means we’re more efficient – which means you get a great rate. Every time."]
["Compare exchange rates"]
["TransferWise"]
["Company and team"]
["Company and team"]
["News and blog"]
["Press"]
["Careers"]
["Affiliates and partnerships"]
["Help and support"]
["Help centre"]
["Mid-market rate"]
["Pricing"]
["Learn more"]
["Send money abroad"]
["Swift/BIC codes"]
["Currency converter"]
["Rate alerts"]
["Compare exchange rates"]
["Follow us"]
[]
["TransferWise"]
["Legal"]
["Privacy policy"]
["Country site map"]
["© TransferWise Ltd 2018"]
["TransferWise is authorised by the Financial Conduct Authority under the Electronic Money Regulations 2011, Firm Reference 900507, for the issuing of electronic money."]